fUST/lending_fUST_20241026
["ID","MTS","AMOUNT","RATE_DAILY","PERIOD"]
[340818114,1729874843300,273.37336231,9.9e-05,2]
[340818115,1729874851837,273.37336231,9.9e-05,2]
[340818116,1729874859617,273.37336231,9.9e-05,2]
[340818117,1729874933934,17160.01,0.00011,2]
[340818138,1729875032331,-400.0,0.00013973,2]
[340818139,1729875032342,-200.0,0.00015043,2]
[340818210,1729875038593,-446.79483,0.00015043,2]
[340818399,1729875040437,-2790.14517,0.00015043,2]
[340818401,1729875040448,-300.0,0.00015094,2]
[340818403,1729875040457,-300.0,0.00015094,2]
[340818405,1729875040466,-528.0,0.00015095,2]
[340818407,1729875040476,-703.75051901,0.00015095,2]
[340818858,1729875046337,-1692.24948099,0.00015095,2]
[340818860,1729875046346,-1153.0,0.00015095,2]
[340818862,1729875046356,-150.052,0.00015095,2]
[340818864,1729875046366,-1520.53,0.000159,2]
[340818866,1729875046375,-300.350181,0.00016,6]
[340818868,1729875046384,-7569.4620166,0.00016326,2]
[340818870,1729875046395,-420.0,0.00016518,2]
[340818872,1729875046405,-211.7604288,0.00016568,2]
[340818874,1729875046414,-420.0,0.00016603,2]
[340818876,1729875046423,-160.724408,0.00016855,2]
[340818878,1729875046434,-160.724408,0.00016904,2]
[340818880,1729875046444,-160.724408,0.00016953,2]
[340818882,1729875046453,-160.724408,0.00017002,2]
[340818884,1729875046463,-160.724408,0.0001705,2]
[340818886,1729875046472,-160.724408,0.00017099,2]
[340818888,1729875046481,-160.724408,0.00017148,2]
[340818890,1729875046491,-160.724408,0.00017197,2]
[340818892,1729875046501,-160.724408,0.00017246,2]
[340818895,1729875046510,-160.724408,0.00017294,2]
[340818896,1729875046519,-160.724408,0.00017343,2]
[340818899,1729875046529,-160.724408,0.00017392,2]
[340818900,1729875046538,-160.724408,0.00017441,2]
[340818902,1729875046548,-160.724408,0.0001749,2]
[340818904,1729875046557,-160.724408,0.00017538,2]
[340818906,1729875046566,-160.724408,0.00017587,2]
[340818908,1729875046576,-216.0,0.0001762,2]
[340818910,1729875046585,-160.724408,0.00017636,2]
[340818912,1729875046595,-160.724408,0.00017685,2]
[340818915,1729875046604,-160.724408,0.00017733,2]
[340818917,1729875046614,-122.1931872,0.00018076,2]
[340818919,1729875046626,-464.8068128,0.00018076,2]
[340818921,1729875046636,-527.0,0.00018095,2]
[340818923,1729875046645,-1055.204,0.00018095,2]
[340818925,1729875046654,-587.0,0.00018264,2]
[340818927,1729875046664,-2869.92029652,0.00018367,2]
[340818929,1729875046673,-151.0,0.0001863,2]
[340818931,1729875046684,-439.196,0.0001871,2]
[340818933,1729875046693,-246.10116008,0.00018799,2]
[340818935,1729875046703,-1000.0,0.000188,2]
[340818937,1729875046712,-1000.0,0.000188,2]
[340818939,1729875046722,-1000.0,0.000188,2]
[340818941,1729875046731,-779.7717306,0.000188,2]
[340818943,1729875046743,-371.2282694,0.000188,2]
[340818945,1729875046754,-416.95679592,0.000188,2]
[340818947,1729875046763,-17108.8212717,0.000188,2]
[340818965,1729875046918,-9196.76852574,0.000188,2]
[340819072,1729875105541,1186.0,0.00011015,2]
[340819083,1729875604450,500.0,0.0001,2]
[340819084,1729875604817,500.0,0.0001,2]
[340819085,1729875605192,500.0,0.0001,2]
[340819086,1729875605560,164.4151101,0.0001,2]
[340819088,1729875995674,6236.73,0.00011015,2]
[340819225,1729876233202,-400.0,0.00013973,2]
[340819226,1729876233212,-3000.0,0.00015043,2]
[340819228,1729876233222,-1434.58,0.000156,2]
[340819230,1729876233231,-3000.0,0.00016,2]
[340819232,1729876233241,-300.0,0.00016009,2]
[340819234,1729876233251,-300.0,0.00016009,2]
[340819237,1729876233262,-3000.0,0.0001601,2]
[340819239,1729876233272,-3000.0,0.0001602,2]
[340819240,1729876233281,-3000.0,0.0001603,2]
[340819242,1729876233291,-3000.0,0.0001604,2]
[340819244,1729876233301,-3000.0,0.0001605,2]
[340819246,1729876233311,-3000.0,0.0001606,2]
[340819248,1729876233321,-2582.40479832,0.0001607,2]
[340819416,1729876238644,-417.59520168,0.0001607,2]
[340819418,1729876238653,-3000.0,0.0001608,2]
[340819420,1729876238663,-370.84211633,0.0001608,2]
[340819422,1729876238672,-2211.56268199,0.0001609,2]
[340819590,1729876240612,-788.43731801,0.0001609,2]
[340819592,1729876240622,-283.02190636,0.000161,2]
[340819763,1729876246617,-217.54561683,0.000161,2]
[340819764,1729876246627,-3000.0,0.000161,2]
[340819765,1729876246638,-501.47036253,0.000161,2]
[340819766,1729876246649,-451.87133675,0.000161,2]
[340819767,1729876246659,-310.26493964,0.000161,2]
[340819768,1729876246669,-501.53374175,0.000161,2]
[340819769,1729876246679,-500.0,0.000161,2]
[340819775,1729876246862,-500.0,0.000161,2]
[340819776,1729876246873,-500.0,0.000161,2]
[340819777,1729876246883,-500.0,0.000161,2]
[340819778,1729876246894,-3000.0,0.0001611,2]
[340819779,1729876246904,-1001.62206961,0.00016119,2]
[340819780,1729876246913,-3000.0,0.0001612,2]
[340819781,1729876246923,-4048.448868,0.0001613,2]
[340819782,1729876246933,-1000.0,0.00016374,2]
[340819783,1729876246943,-1500.0,0.00016775,2]
[340819784,1729876246952,-2000.0,0.00017243,2]
[340819785,1729876246962,-420.0,0.00017503,2]
[340819786,1729876246971,-318.0,0.0001761,2]
[340819787,1729876246981,-2500.0,0.00017761,2]
[340819788,1729876246991,-1055.99818504,0.00018,2]
[340819789,1729876247001,-425.029,0.0001808,2]
[340819790,1729876247011,-3000.0,0.0001832,2]
[340819791,1729876247021,-231773.7705555,0.000188,2]
[340819792,1729876247032,-1000.0,0.000189,2]
[340819793,1729876247042,-1000.0,0.000189,2]
[340819794,1729876247052,-1000.0,0.000189,2]
[340819795,1729876247063,-151.0,0.00018904,2]
[340819796,1729876247072,-1000.0,0.00019,2]
[340819797,1729876247083,-1000.0,0.00019,2]
[340819798,1729876247094,-1000.0,0.00019,2]
[340819799,1729876247104,-151.73660312,0.00019,2]
[340819800,1729876247115,-200.0,0.00019,2]
[340819801,1729876247126,-500.0,0.00019,2]
[340819802,1729876247137,-500.0,0.00019,2]
[340819803,1729876247148,-587.0,0.00019136,2]
[340819804,1729876247158,-151.0,0.00019178,2]
[340819805,1729876247167,-164.247762,0.00019178,2]
[340819806,1729876247177,-447.130494,0.00019178,4]
[340819807,1729876247186,-1000.0,0.000193,2]
[340819808,1729876247195,-1000.0,0.000193,2]
[340819809,1729876247205,-1000.0,0.000193,2]
[340819810,1729876247214,-151.0,0.00019452,2]
[340819811,1729876247223,-1490.59,0.0001946,2]
[340819812,1729876247233,-1003.86905951,0.00019648,2]
[340819813,1729876247242,-14590.41159724,0.0001969,2]
[340819814,1729876247251,-1000.0,0.00019753,2]
[340819815,1729876247260,-205.32,0.00019779,3]
[340819816,1729876247274,-615.96,0.0001978,3]
[340819817,1729876247284,-500.0,0.00019789,2]
[340819818,1729876247292,-489.19260012,0.00019789,2]
[340819819,1729876247302,-500.0,0.00019789,2]
[340819820,1729876247312,-273.04510008,0.00019789,2]
[340819821,1729876247321,-500.0,0.00019789,2]
[340819822,1729876247331,-500.0,0.00019789,2]
[340819823,1729876247340,-500.0,0.00019789,2]
[340819824,1729876247349,-500.0,0.00019789,2]
[340819825,1729876247358,-207.77034838,0.00019789,2]
[340819826,1729876247367,-500.0,0.00019789,2]
[340819827,1729876247376,-646.38434836,0.00019789,2]
[340819828,1729876247386,-500.0,0.00019789,2]
[340819829,1729876247396,-500.0,0.00019789,2]
[340819830,1729876247405,-500.0,0.00019789,2]
[340819831,1729876247414,-500.0,0.00019789,2]
[340819832,1729876247423,-500.0,0.00019789,2]
[340819833,1729876247433,-500.0,0.00019789,2]
[340819834,1729876247442,-500.0,0.00019789,2]
[340819835,1729876247451,-40733.52030557,0.0001979,3]
[340819836,1729876247463,-12704.01486694,0.0001979,3]
[340819837,1729876247475,-18261.88887747,0.0001979,3]
[340819839,1729877282263,273.37336231,9.9e-05,2]
[340819845,1729877297829,273.37336231,9.9e-05,2]
[340819846,1729877313698,273.37336231,9.9e-05,2]
[340819849,1729877330191,273.37336231,9.9e-05,2]
[340819949,1729877438748,-863.74696695,0.00012634,2]
[340819954,1729877438782,-2045.5773078,0.00012634,2]
[340819956,1729877438791,-400.0,0.00013973,2]
[340819958,1729877438800,-1350.61,0.000156,2]
[340819960,1729877438809,-300.0,0.00015703,2]
[340819961,1729877438818,-300.0,0.00015703,2]
[340819962,1729877438827,-196.064,0.00015704,2]
[340819963,1729877438836,-527.0,0.00015704,2]
[340819964,1729877438846,-501.14005583,0.000158,2]
[340819965,1729877438855,-420.0,0.00017174,2]
[340819966,1729877438864,-2723.9337664,0.00017784,2]
[340819967,1729877438874,-159.974343,0.00018001,2]
[340819968,1729877438883,-587.0,0.00018782,2]
[340819969,1729877438892,-1000.0,0.000188,2]
[340819970,1729877438901,-159.974343,0.00018939,2]
[340819971,1729877438910,-151.73660312,0.00019,2]
[340819972,1729877438919,-200.0,0.00019,2]
[340819973,1729877438928,-412.066,0.0001903,2]
[340819974,1729877438936,-224.0,0.0001912,2]
[340819975,1729877438945,-164.247762,0.00019178,2]
[340819976,1729877438955,-612.0,0.000192,2]
[340819977,1729877438964,-1005.472804,0.000195,2]
[340819978,1729877438973,-154.51044611,0.00019673,2]
[340819979,1729877438983,-422.848166,0.0001969,2]
[340819980,1729877438992,-500.0,0.00019727,2]
[340819981,1729877439001,-500.0,0.00019727,2]
[340819982,1729877439010,-154.51044609,0.00019742,2]
[340819983,1729877439019,-410.64,0.0001976,3]
[340819984,1729877439028,-332.56470469,0.0001976,2]
[340819985,1729877439038,-24420.3424496,0.0001976,3]
[340819986,1729877439047,-37167.3106176,0.0001976,3]
[340819987,1729877439056,-24420.3424496,0.0001977,3]
[340819988,1729877439066,-37167.3106176,0.0001977,3]
[340819989,1729877439078,-189.75226093,0.00019779,2]
[340819990,1729877439088,-627.37603871,0.00019779,2]
[340819991,1729877439099,-24420.3424496,0.0001978,3]
[340819992,1729877439110,-37167.3106176,0.0001978,3]
[340819993,1729877439120,-206.31747742,0.00019788,2]
[340819994,1729877439130,-6069.75980637,0.00019788,2]
[340819995,1729877439139,-296.827879,0.0001979,2]
[340819996,1729877439148,-151.0,0.0001979,2]
[340819997,1729877439158,-151.0,0.0001979,2]
[340819998,1729877439171,-151.0,0.0001979,2]
[340819999,1729877439181,-151.0,0.0001979,2]
[340820000,1729877439190,-151.0,0.0001979,2]
[340820001,1729877439199,-151.0,0.0001979,2]
[340820002,1729877439210,-151.0,0.0001979,2]
[340820003,1729877439219,-151.0,0.0001979,2]
[340820004,1729877439228,-151.0,0.0001979,2]
[340820005,1729877439238,-151.0,0.0001979,2]
[340820006,1729877439247,-151.0,0.0001979,2]
[340820007,1729877439257,-151.0,0.0001979,2]
[340820008,1729877439265,-211.248088,0.0001979,2]
[340820009,1729877439275,-151.0,0.0001979,2]
[340820010,1729877439284,-151.0,0.0001979,2]
[340820011,1729877439293,-755.787363,0.0001979,2]
[340820012,1729877439302,-755.787363,0.0001979,2]
[340820013,1729877439312,-151.0,0.0001979,2]
[340820014,1729877439322,-151.0,0.0001979,2]
[340820015,1729877439331,-151.0,0.0001979,2]
[340820016,1729877439341,-151.0,0.0001979,2]
[340820017,1729877439351,-151.0,0.0001979,2]
[340820018,1729877439360,-151.0,0.0001979,2]
[340820019,1729877439369,-151.0,0.0001979,2]
[340820020,1729877439378,-151.0,0.0001979,2]
[340820021,1729877439387,-176.774294,0.0001979,2]
[340820022,1729877439397,-205.201224,0.0001979,2]
[340820023,1729877439406,-205.201224,0.0001979,2]
[340820024,1729877439416,-151.0,0.0001979,2]
[340820025,1729877439426,-151.0,0.0001979,2]
[340820026,1729877439436,-24420.3424496,0.0001979,3]
[340820027,1729877439445,-37167.3106176,0.0001979,3]
[340820028,1729877439454,-151.0,0.0001979,2]
[340820029,1729877439464,-151.0,0.0001979,2]
[340820030,1729877439473,-151.0,0.0001979,2]
[340820031,1729877439485,-151.0,0.0001979,2]
[340820032,1729877439494,-252.158244,0.0001979,2]
[340820033,1729877439503,-252.158244,0.0001979,2]
[340820034,1729877439513,-329.320598,0.0001979,2]
[340820035,1729877439522,-151.0,0.0001979,2]
[340820036,1729877439532,-329.320598,0.0001979,2]
[340820037,1729877439541,-151.0,0.0001979,2]
[340820038,1729877439550,-283.647992,0.0001979,2]
[340820039,1729877439560,-31390.0,0.000198,2]
[340820040,1729877439569,-151.0,0.000198,2]
[340820041,1729877439579,-151.0,0.000198,2]
[340820042,1729877439590,-151.0,0.000198,2]
[340820043,1729877439599,-151.0,0.000198,2]
[340820044,1729877439608,-151.0,0.000198,2]
[340820045,1729877439618,-151.0,0.000198,2]
[340820046,1729877439627,-151.0,0.000198,2]
[340820047,1729877439848,-151.0,0.000198,2]
[340820048,1729877439858,-151.0,0.000198,2]
[340820049,1729877439867,-151.0,0.000198,2]
[340820050,1729877439877,-151.0,0.000198,2]
[340820051,1729877439886,-151.0,0.000198,2]
[340820052,1729877439896,-151.0,0.000198,2]
[340820053,1729877439906,-151.0,0.000198,2]
[340820054,1729877439915,-1391.2695,0.000198,2]
[340820055,1729877439925,-154.51044609,0.00019811,2]
[340820056,1729877439934,-151.0,0.00019811,2]
[340820057,1729877439943,-151.0,0.00019811,2]
[340820058,1729877439952,-252.158244,0.00019811,2]
[340820059,1729877439962,-252.158244,0.00019811,2]
[340820060,1729877439971,-755.787363,0.00019862,2]
[340820061,1729877439981,-755.787363,0.00019862,2]
[340820062,1729877439990,-151.0,0.00019862,2]
[340820063,1729877439999,-151.0,0.00019862,2]
[340820064,1729877440008,-151.0,0.00019862,2]
[340820065,1729877440017,-151.0,0.00019862,2]
[340820066,1729877440027,-151.0,0.00019862,2]
[340820067,1729877440036,-151.0,0.00019862,2]
[340820068,1729877440046,-151.0,0.00019862,2]
[340820069,1729877440056,-151.0,0.00019862,2]
[340820070,1729877440065,-176.774294,0.00019862,2]
[340820071,1729877440075,-205.201224,0.00019862,2]
[340820072,1729877440084,-205.201224,0.00019862,2]
[340820073,1729877440097,-151.0,0.00019862,2]
[340820074,1729877440106,-151.0,0.00019862,2]
[340820075,1729877440116,-151.0,0.00019862,2]
[340820076,1729877440125,-154.51044609,0.0001988,2]
[340820077,1729877440134,-150.112233,0.000199,2]
[340820078,1729877440144,-150.112237,0.000199,2]
[340820080,1729877440153,-500.0,0.00019942,2]
[340820082,1729877440167,-284.77712134,0.00019942,2]
[340820084,1729877440176,-329.320598,0.00019942,2]
[340820086,1729877440186,-151.0,0.00019942,2]
[340820088,1729877440195,-329.320598,0.00019942,2]
[340820089,1729877440205,-151.0,0.00019942,2]
[340820090,1729877440214,-24420.3424496,0.00019943,3]
[340820091,1729877440224,-37167.3106176,0.00019943,3]
[340820092,1729877440234,-151.0,0.00019953,2]
[340820093,1729877440244,-151.0,0.00019953,2]
[340820095,1729877440253,-151.0,0.00019953,2]
[340820097,1729877440263,-151.0,0.00019953,2]
[340820099,1729877440272,-151.0,0.00019953,2]
[340820101,1729877440286,-211.248088,0.00019953,2]
[340820102,1729877440296,-151.0,0.00019953,2]
[340820103,1729877440305,-755.787363,0.00019953,2]
[340820104,1729877440315,-755.787363,0.00019953,2]
[340820106,1729877440324,-151.0,0.00019953,2]
[340820107,1729877440334,-151.0,0.00019953,2]
[340820108,1729877440346,-151.0,0.00019953,2]
[340820109,1729877440357,-151.0,0.00019953,2]
[340820110,1729877440366,-151.0,0.00019953,2]
[340820111,1729877440376,-151.0,0.00019953,2]
[340820113,1729877440385,-151.0,0.00019953,2]
[340820115,1729877440395,-151.0,0.00019953,2]
[340820116,1729877440404,-176.774294,0.00019953,2]
[340820118,1729877440414,-205.201224,0.00019953,2]
[340820119,1729877440423,-205.201224,0.00019953,2]
[340820120,1729877440435,-151.0,0.00019953,2]
[340820121,1729877440446,-151.0,0.00019953,2]
[340820123,1729877440457,-151.0,0.00019953,2]
[340820125,1729877440466,-151.0,0.00019953,2]
[340820127,1729877440477,-151.0,0.00019953,2]
[340820129,1729877440487,-252.158244,0.00019953,2]
[340820131,1729877440498,-252.158244,0.00019953,2]
[340820133,1729877440507,-151.0,0.00019962,2]
[340820135,1729877440517,-151.0,0.00019962,2]
[340820136,1729877440526,-151.0,0.00019962,2]
[340820138,1729877440536,-151.0,0.00019962,2]
[340820140,1729877440545,-151.0,0.00019962,2]
[340820142,1729877440555,-151.0,0.00019962,2]
[340820144,1729877440564,-151.0,0.00019962,2]
[340820145,1729877440574,-151.0,0.00019962,2]
[340820146,1729877440583,-151.0,0.00019962,2]
[340820147,1729877440594,-211.248088,0.00019962,2]
[340820148,1729877440604,-151.0,0.00019962,2]
[340820149,1729877440614,-329.320598,0.00019962,2]
[340820150,1729877440623,-151.0,0.00019962,2]
[340820151,1729877440633,-329.320598,0.00019962,2]
[340820152,1729877440642,-151.0,0.00019962,2]
[340820153,1729877440652,-329.320598,0.0001997,2]
[340820154,1729877440661,-329.320598,0.0001997,2]
[340820155,1729877440671,-151.0,0.0001997,2]
[340820156,1729877440681,-24420.3424496,0.0001997,3]
[340820157,1729877440690,-37167.3106176,0.0001997,3]
[340820159,1729877440700,-500.0,0.00019973,2]
[340820160,1729877440709,-500.0,0.00019973,2]
[340820161,1729877440718,-500.0,0.00019973,2]
[340820162,1729877440727,-500.0,0.00019973,2]
[340820163,1729877440737,-500.0,0.00019973,2]
[340820164,1729877440746,-500.0,0.00019973,2]
[340820165,1729877440756,-509.68468808,0.00019973,2]
[340820166,1729877440766,-500.0,0.00019973,2]
[340820167,1729877440775,-500.0,0.00019973,2]
[340820168,1729877440785,-500.0,0.00019973,2]
[340820169,1729877440794,-500.0,0.00019973,2]
[340820170,1729877440804,-500.0,0.00019973,2]
[340820171,1729877440813,-500.0,0.00019973,2]
[340820172,1729877440822,-503.98406867,0.00019973,2]
[340820173,1729877440831,-151.0,0.0001998,2]
[340820174,1729877440840,-151.0,0.0001998,2]
[340820175,1729877440850,-151.0,0.0001998,2]
[340820176,1729877440859,-156.899661,0.0001998,2]
[340820177,1729877440869,-211.248088,0.0001998,2]
[340820178,1729877440878,-151.0,0.0001998,2]
[340820179,1729877440887,-755.787363,0.0001998,2]
[340820180,1729877440897,-755.787363,0.0001998,2]
[340820181,1729877440907,-151.0,0.0001998,2]
[340820182,1729877440916,-151.0,0.0001998,2]
[340820183,1729877440926,-151.0,0.0001998,2]
[340820184,1729877440936,-151.0,0.0001998,2]
[340820185,1729877440946,-151.0,0.0001998,2]
[340820186,1729877440957,-151.0,0.0001998,2]
[340820187,1729877440966,-151.0,0.0001998,2]
[340820188,1729877440976,-176.774294,0.0001998,2]
[340820189,1729877440986,-205.201224,0.0001998,2]
[340820190,1729877440996,-205.201224,0.0001998,2]
[340820191,1729877441006,-151.0,0.0001998,2]
[340820192,1729877441015,-151.0,0.0001998,2]
[340820193,1729877441025,-151.0,0.0001998,2]
[340820194,1729877441034,-151.0,0.0001998,2]
[340820195,1729877441044,-252.158244,0.0001998,2]
[340820196,1729877441053,-252.158244,0.0001998,2]
[340820197,1729877441063,-151.0,0.0001999,2]
[340820198,1729877441072,-151.0,0.0001999,2]
[340820199,1729877441081,-151.0,0.0001999,2]
[340820200,1729877441091,-151.0,0.0001999,2]
[340820201,1729877441101,-151.0,0.0001999,2]
[340820202,1729877441111,-151.0,0.0001999,2]
[340820203,1729877441121,-155.209653,0.0001999,2]
[340820204,1729877441131,-151.0,0.0001999,2]
[340820205,1729877441142,-151.0,0.0001999,2]
[340820206,1729877441153,-211.248088,0.0001999,2]
[340820207,1729877441166,-151.0,0.0001999,2]
[340820208,1729877441175,-755.787363,0.0001999,2]
[340820209,1729877441185,-755.787363,0.0001999,2]
[340820210,1729877441195,-151.0,0.0001999,2]
[340820211,1729877441205,-151.0,0.0001999,2]
[340820212,1729877441215,-151.0,0.0001999,2]
[340820213,1729877441224,-151.0,0.0001999,2]
[340820214,1729877441235,-151.0,0.0001999,2]
[340820215,1729877441246,-151.0,0.0001999,2]
[340820216,1729877441256,-151.0,0.0001999,2]
[340820217,1729877441266,-176.774294,0.0001999,2]
[340820218,1729877441277,-205.201224,0.0001999,2]
[340820219,1729877441287,-205.201224,0.0001999,2]
[340820220,1729877441297,-151.0,0.0001999,2]
[340820221,1729877441307,-63946.85849443,0.0001999,3]
[340820222,1729877441322,-662.732602,0.0001999,3]
[340820223,1729877441561,-8651.43625247,0.0001999,3]
[340820224,1729877441570,-37167.3106176,0.0001999,3]
[340820225,1729877441579,-151.0,0.0001999,2]
[340820226,1729877441590,-151.0,0.0001999,2]
[340820227,1729877441599,-151.0,0.0001999,2]
[340820228,1729877441608,-252.158244,0.0001999,2]
[340820229,1729877441617,-252.158244,0.0001999,2]
[340820230,1729877441627,-329.320598,0.0001999,2]
[340820231,1729877441636,-329.320598,0.0001999,2]
[340820232,1729877441647,-151.0,0.0001999,2]
[340820233,1729877441659,-184.0,0.0002,2]
[340820234,1729877441668,-88279.92872863,0.0002,2]
[340820252,1729877443923,-1804.0,0.00015704,2]
[340820253,1729877443932,-11584.75455177,0.0002,2]
[340820258,1729877446610,-151.0,0.0001979,2]
[340820259,1729877446619,-151.0,0.0001979,2]
[340820260,1729877446628,-3408.64044983,0.0002,2]
[340820268,1729878224793,8560.7209413,0.0001,2]
[340820290,1729878635416,-400.0,0.00013973,2]
[340820291,1729878635427,-227.469413,0.0001425,2]
[340820292,1729878635436,-29.530587,0.0001425,2]
[340820338,1729878638126,-185.234707,0.0001425,2]
[340820340,1729878638136,-500.0,0.0001467,2]
[340820342,1729878638145,-214.765294,0.00014963,2]
[340820344,1729878638155,-1215.55,0.000157,2]
[340820346,1729878638163,-901.16418226,0.00016,2]
[340820526,1729878639934,-1401.95021522,0.0001598,2]
[340820528,1729878639945,-2098.83581774,0.00016,2]
[340820530,1729878639954,-3000.0,0.0001601,2]
[340820532,1729878639964,-300.0,0.00016019,2]
[340820535,1729878639974,-3000.0,0.0001602,2]
[340820537,1729878639983,-3000.0,0.0001603,2]
[340820539,1729878639992,-3000.0,0.0001604,2]
[340820541,1729878640002,-3000.0,0.0001605,2]
[340820543,1729878640011,-3000.0,0.0001606,2]
[340820545,1729878640020,-3000.0,0.0001607,2]
[340820547,1729878640030,-3000.0,0.0001608,2]
[340820549,1729878640039,-221.70980313,0.0001608,2]
[340820551,1729878640051,-3000.0,0.0001609,2]
[340820553,1729878640061,-3000.0,0.000161,2]
[340820555,1729878640071,-3000.0,0.0001611,2]
[340820557,1729878640080,-3000.0,0.0001612,2]
[340820559,1729878640090,-3000.0,0.0001613,2]
[340820561,1729878640099,-3000.0,0.0001614,2]
[340820563,1729878640110,-3000.0,0.0001615,2]
[340820565,1729878640119,-3000.0,0.0001616,2]
[340820567,1729878640128,-3000.0,0.0001617,2]
[340820569,1729878640138,-3000.0,0.0001618,2]
[340820571,1729878640148,-3000.0,0.0001619,2]
[340820573,1729878640157,-3000.0,0.000162,2]
[340820575,1729878640167,-3000.0,0.0001621,2]
[340820577,1729878640176,-3000.0,0.0001622,2]
[340820579,1729878640185,-3000.0,0.0001623,2]
[340820581,1729878640195,-3000.0,0.0001624,2]
[340820583,1729878640204,-3000.0,0.0001625,2]
[340820585,1729878640213,-3000.0,0.0001626,2]
[340820588,1729878640223,-3000.0,0.0001627,2]
[340820590,1729878640232,-3000.0,0.0001628,2]
[340820592,1729878640241,-24158.7519014,0.00016288,2]
[340820594,1729878640251,-3000.0,0.0001629,2]
[340820596,1729878640261,-13431.1883473,0.00016298,2]
[340820598,1729878640271,-3000.0,0.000163,2]
[340820600,1729878640280,-1804.0,0.00016308,2]
[340820602,1729878640290,-1154.0,0.00016308,2]
[340820604,1729878640300,-500.0,0.00016309,2]
[340820606,1729878640310,-3000.0,0.0001631,2]
[340820608,1729878640320,-3000.0,0.0001632,2]
[340820610,1729878640331,-3000.0,0.0001633,2]
[340820612,1729878640340,-3000.0,0.0001634,2]
[340820614,1729878640350,-3000.0,0.0001635,2]
[340820616,1729878640359,-3000.0,0.0001636,2]
[340820618,1729878640369,-3000.0,0.0001637,2]
[340820620,1729878640378,-3000.0,0.0001638,2]
[340820622,1729878640388,-3000.0,0.0001639,2]
[340820624,1729878640397,-3000.0,0.000164,2]
[340820626,1729878640407,-24158.7519014,0.000164,2]
[340820628,1729878640417,-3000.0,0.0001641,2]
[340820630,1729878640426,-3000.0,0.0001642,2]
[340820632,1729878640435,-3000.0,0.0001643,2]
[340820634,1729878640445,-3000.0,0.0001644,2]
[340820636,1729878640455,-3000.0,0.0001645,2]
[340820638,1729878640465,-13431.1883473,0.0001645,2]
[340820640,1729878640474,-3000.0,0.0001646,2]
[340820642,1729878640484,-3000.0,0.0001647,2]
[340820644,1729878640493,-3132.173454,0.0001648,2]
[340820646,1729878640503,-500.0,0.00016583,2]
[340820648,1729878640512,-420.0,0.00017514,2]
[340820650,1729878640522,-200.0,0.00019,2]
[340820652,1729878640532,-151.63988524,0.00019,2]
[340820654,1729878640542,-552.57997674,0.00019013,2]
[340820656,1729878640557,-587.0,0.00019148,2]
[340820658,1729878640567,-185.005971,0.00019178,2]
[340820660,1729878640576,-600.0,0.000192,2]
[340820663,1729878640586,-400.036,0.0001924,2]
[340820665,1729878640595,-877.30917746,0.000194,2]
[340820667,1729878640608,-612.0,0.000195,2]
[340820669,1729878640619,-151.0,0.00019676,2]
[340820671,1729878640629,-151.0,0.00019962,2]
[340820673,1729878640639,-24158.7519014,0.00019963,3]
[340820675,1729878640651,-469.37899884,0.00019964,2]
[340820677,1729878640661,-500.0,0.00019973,2]